bitfinex-derivatives/quotes_BTCF0:USTF0_20230402
["timestamp","ask_amount","ask_price","bid_price","bid_amount"]
[1680402534992,6e-05,28439.0,28438.0,0.28509254]
[1680402540497,6e-05,28440.0,28438.0,0.28509254]
[1680402540790,6e-05,28440.0,28439.0,0.1908]
[1680402541494,6e-05,28440.0,28439.0,0.1928]
[1680402544491,0.30076,28440.0,28439.0,0.1928]
[1680402545301,0.30076,28440.0,28439.0,0.1929]
[1680402545801,0.30076,28440.0,28439.0,0.1429]
[1680402547291,0.30076,28440.0,28439.0,0.14436312]
[1680402553108,0.30076,28440.0,28439.0,0.19436312]
[1680402553505,0.30076,28440.0,28439.0,0.14436312]
[1680402553704,0.30076,28440.0,28439.0,0.19436312]
[1680402554996,0.30076,28440.0,28439.0,0.1929]
[1680402555907,0.30076,28440.0,28439.0,0.1429]
[1680402560399,0.30076,28440.0,28439.0,0.1929]
[1680402560808,0.30076,28440.0,28439.0,0.1429]
[1680402566207,0.30076,28440.0,28439.0,0.0721]
[1680402566412,0.35076,28440.0,28439.0,0.0721]
[1680402566608,0.47715084,28440.0,28439.0,0.0721]
[1680402567008,0.49735084,28440.0,28439.0,0.002]
[1680402569706,0.42096,28440.0,28439.0,0.002]
[1680402571218,0.37096,28440.0,28439.0,0.002]
[1680402571718,0.53974542,28440.0,28439.0,0.002]
[1680402572119,0.37096,28440.0,28439.0,0.002]
[1680402572307,0.30076,28440.0,28439.0,0.0722]
[1680402579618,0.46954542,28440.0,28439.0,0.0722]
[1680402580223,0.30076,28440.0,28439.0,0.0722]
[1680402580721,0.46954542,28440.0,28439.0,0.0722]
[1680402580923,0.30076,28440.0,28439.0,0.0722]
[1680402581123,0.46954542,28440.0,28439.0,0.0722]
[1680402581625,0.30076,28440.0,28439.0,0.0722]
[1680402582724,0.05,28439.0,28435.0,0.0699]
[1680402582920,0.05,28439.0,28433.0,0.05]
[1680402582921,0.3007,28436.0,28433.0,0.05]
[1680402583133,0.3707,28434.0,28432.0,0.0704]
[1680402583620,0.3707,28434.0,28433.0,0.00148011]
[1680402584920,0.3727,28434.0,28433.0,0.00148011]
[1680402585321,0.3727,28434.0,28433.0,0.00248011]
[1680402586927,0.3027,28434.0,28433.0,0.07258011]
[1680402592729,0.3027,28434.0,28433.0,0.00248011]
[1680402592932,0.3731,28434.0,28433.0,0.00248011]
[1680402596137,0.6738,28434.0,28433.0,0.00248011]
[1680402596525,0.6738,28434.0,28433.0,0.001]
[1680402600237,0.05,28433.0,28431.0,0.0704]
[1680402600535,0.0704,28432.0,28428.0,0.0704]
[1680402600736,0.3711,28429.0,28428.0,0.0704]
[1680402602336,0.3007,28429.0,28428.0,0.1408]
[1680402602742,0.3007,28431.0,28428.0,0.1408]
[1680402603042,0.3007,28431.0,28430.0,0.0702]
[1680402604138,0.3007,28431.0,28430.0,0.0712]
[1680402606337,0.3007,28431.0,28430.0,0.07278897]
[1680402616939,0.3007,28431.0,28430.0,0.14318897]
[1680402619944,0.3007,28434.0,28430.0,0.14318897]
[1680402620137,0.3007,28434.0,28433.0,0.0704]
[1680402621441,0.3037,28434.0,28433.0,0.0724]
[1680402624247,0.3207,28434.0,28433.0,0.0724]
[1680402626751,0.02,28434.0,28433.0,0.0724]
[1680402626948,0.391,28434.0,28433.0,0.002]
[1680402627748,0.517517,28434.0,28433.0,0.002]
[1680402628951,0.517517,28434.0,28433.0,0.00358827]
[1680402630250,0.517517,28434.0,28433.0,0.05358827]
[1680402630454,0.447217,28434.0,28433.0,0.12398827]
[1680402631048,0.3207,28434.0,28433.0,0.12398827]
[1680402636758,0.3207,28434.0,28433.0,0.07398827]
[1680402638450,0.3207,28434.0,28433.0,0.12398827]
[1680402639456,0.02,28434.0,28433.0,0.12398827]
[1680402641251,0.427217,28439.0,28434.0,0.05]
[1680402641458,0.427217,28439.0,28438.0,0.0702]
[1680402642060,0.3007,28439.0,28438.0,0.0702]
[1680402642454,0.3017,28439.0,28438.0,0.0722]
[1680402643964,0.3017,28439.0,28438.0,0.07366908]
[1680402644763,0.3007,28439.0,28438.0,0.07166908]
[1680402645064,0.3017,28439.0,28438.0,0.07366908]
[1680402646963,0.4215,28439.0,28438.0,0.07386908]
[1680402647265,0.548017,28439.0,28438.0,0.07386908]
[1680402647464,0.498017,28439.0,28438.0,0.07386908]
[1680402647655,0.3715,28439.0,28438.0,0.07386908]
[1680402654971,0.0708,28439.0,28438.0,0.07386908]
[1680402655170,0.3715,28439.0,28438.0,0.07386908]
[1680402655473,0.3721,28439.0,28438.0,0.07386908]
[1680402657170,0.3717,28439.0,28438.0,0.07386908]
[1680402666277,0.3017,28439.0,28438.0,0.14396908]
[1680402668971,0.001,28439.0,28438.0,0.14396908]
[1680402673581,0.001,28439.0,28438.0,0.28486908]
[1680402676878,0.001,28439.0,28438.0,0.21476908]
[1680402677085,0.001,28439.0,28438.0,0.28456908]
[1680402682987,0.001,28439.0,28438.0,0.2831]
[1680402687090,0.001,28439.0,28438.0,0.2839]
[1680402688702,0.001,28439.0,28438.0,0.28380324]
[1680402690703,0.001,28439.0,28438.0,0.14300324]
[1680402704006,0.3017,28439.0,28438.0,0.14300324]
[1680402704805,0.001,28439.0,28438.0,0.14300324]
[1680402706098,0.3017,28439.0,28438.0,0.14300324]
[1680402713916,0.3017,28439.0,28435.0,0.0704]
[1680402714211,0.3007,28436.0,28435.0,0.0704]
[1680402714411,0.3007,28436.0,28435.0,0.1406]
[1680402714913,0.3007,28436.0,28432.0,0.0699]
[1680402715114,0.3007,28433.0,28432.0,0.0699]
[1680402715310,0.3007,28433.0,28432.0,0.1403]
[1680402716919,0.3037,28433.0,28432.0,0.0709]
[1680402722923,0.003,28433.0,28432.0,0.0709]
[1680402732634,0.003,28433.0,28432.0,0.1413]
[1680402756053,0.003,28433.0,28432.0,0.2821]
[1680402756250,0.176517,28438.0,28433.0,0.05]
[1680402756452,0.196817,28439.0,28437.0,0.0704]
[1680402756955,0.126517,28438.0,28435.0,0.0704]
[1680402757156,0.3507,28437.0,28435.0,0.0704]
[1680402757357,0.3507,28437.0,28436.0,0.0704]
[1680402758050,0.477217,28437.0,28436.0,0.0704]
[1680402758952,0.477217,28437.0,28436.0,0.0724]
[1680402760852,0.427217,28437.0,28436.0,0.0724]
[1680402761050,0.477217,28437.0,28436.0,0.0724]
[1680402762264,0.427217,28437.0,28436.0,0.0724]
[1680402776967,0.497017,28437.0,28436.0,0.0721]
[1680402784275,0.3705,28437.0,28436.0,0.0721]
[1680402787075,0.3007,28437.0,28436.0,0.0721]
[1680402792176,0.427217,28437.0,28436.0,0.0721]
[1680402802389,0.427217,28437.0,28436.0,0.07190448]
[1680402823803,0.126517,28437.0,28436.0,0.07190448]
[1680402824306,0.427217,28437.0,28436.0,0.07190448]
[1680402824911,0.126517,28437.0,28436.0,0.07190448]
[1680402825113,0.427217,28437.0,28436.0,0.07190448]
[1680402830814,0.3007,28437.0,28436.0,0.07190448]
[1680402832109,0.126517,28438.0,28436.0,0.07190448]
[1680402832311,0.3007,28437.0,28436.0,0.00180448]
[1680402832515,0.3007,28437.0,28436.0,0.07220448]
[1680402833113,0.3007,28437.0,28436.0,0.0714]
[1680402833316,0.427217,28437.0,28436.0,0.0714]
[1680402834616,0.453217,28437.0,28436.0,0.0714]
[1680402855321,0.453217,28437.0,28436.0,0.0712112]
[1680402855527,0.503217,28437.0,28436.0,0.0712112]
[1680402855727,0.453217,28437.0,28436.0,0.0712112]
[1680402857728,0.503217,28437.0,28436.0,0.0712112]
[1680402859831,0.453217,28437.0,28436.0,0.0712112]
[1680402861429,0.152517,28437.0,28436.0,0.0712112]
[1680402861622,0.753917,28437.0,28436.0,0.0712112]
[1680402865339,0.824117,28437.0,28436.0,0.001]
[1680402865539,0.6976,28437.0,28435.0,0.0702]
[1680402865842,0.24676591,28436.0,28435.0,0.0702]
[1680402866833,0.24676591,28436.0,28435.0,0.0712]
[1680402867341,0.27076591,28436.0,28435.0,0.0712]
[1680402867939,0.22076591,28436.0,28435.0,0.0712]
[1680402868941,0.82216591,28436.0,28435.0,0.0712]
[1680402872740,0.22076591,28436.0,28435.0,0.0712]
[1680402872929,0.82216591,28436.0,28435.0,0.0712]
[1680402873639,0.82236591,28436.0,28435.0,0.0714]
[1680402876945,0.82236591,28436.0,28435.0,0.001]
[1680402883245,0.75196591,28436.0,28435.0,0.0712]
[1680402883441,0.6254,28436.0,28435.0,0.0712]
[1680402886939,0.6957,28436.0,28435.0,0.0714]
[1680402888144,0.395,28436.0,28435.0,0.0714]
[1680402896955,0.3247,28436.0,28435.0,0.0714]
[1680402897361,0.45126591,28436.0,28435.0,0.0714]
[1680402897759,0.3247,28436.0,28435.0,0.0714]
[1680402899059,0.45126591,28436.0,28435.0,0.0714]
[1680402910268,0.3247,28436.0,28435.0,0.0714]
[1680402910456,0.45126591,28436.0,28435.0,0.0714]
[1680402910766,0.3247,28436.0,28435.0,0.0714]
[1680402913968,0.45126591,28436.0,28435.0,0.0714]
[1680402914163,0.3247,28436.0,28435.0,0.0714]
[1680402914369,0.45126591,28436.0,28435.0,0.07120029]
[1680402914962,0.3247,28436.0,28435.0,0.07120029]
[1680402915159,0.45126591,28436.0,28435.0,0.07120029]
[1680402916265,0.52126591,28436.0,28435.0,0.00080029]
[1680402916563,0.05,28435.0,28425.0,0.6121]
[1680402916768,0.3007,28427.0,28426.0,0.05]
[1680402916967,0.3007,28427.0,28426.0,0.14208199]
[1680402917161,0.3007,28427.0,28426.0,0.19208199]
[1680402917771,0.3037,28427.0,28426.0,0.15008199]
[1680402918473,0.3037,28427.0,28426.0,0.20008199]
[1680402920169,0.3037,28427.0,28426.0,0.1986]
[1680402920870,0.3037,28427.0,28426.0,0.1486]
[1680402927075,0.003,28427.0,28426.0,0.1486]
[1680402937085,0.003,28427.0,28426.0,0.0784]
[1680402961188,0.3741,28427.0,28426.0,0.0784]
[1680402965595,0.3741,28427.0,28426.0,0.008]
[1680402967697,0.6748,28427.0,28426.0,0.008]
[1680402970815,0.6748,28427.0,28426.0,0.00779939]
[1680402982912,0.0734,28427.0,28426.0,0.00779939]
[1680402983113,0.6748,28427.0,28426.0,0.00779939]
[1680402986012,0.6718,28427.0,28424.0,0.0704]
[1680402986218,0.6014,28427.0,28426.0,0.002]
[1680402986419,0.6717,28427.0,28426.0,0.002]
[1680402987819,0.0703,28427.0,28426.0,0.002]
[1680402988021,0.6717,28427.0,28426.0,0.002]
[1680402993225,0.6827,28427.0,28426.0,0.001]
[1680402994027,0.6767,28427.0,28426.0,0.001]
[1680402997527,0.05,28426.0,28424.0,0.0701]
[1680402997728,0.0704,28425.0,28424.0,0.0701]
[1680402998631,0.0704,28425.0,28424.0,0.0721]
[1680402999029,0.0714,28425.0,28424.0,0.0771]
[1680402999431,0.0714,28425.0,28424.0,0.1472]
[1680402999432,0.001,28425.0,28424.0,0.1472]
[1680403007037,0.001,28425.0,28424.0,0.0771]
[1680403008640,0.42727827,28429.0,28425.0,0.05]
[1680403008834,0.3007,28429.0,28428.0,0.1406]
[1680403009036,0.3007,28429.0,28428.0,0.1906]
[1680403009742,0.3187,28429.0,28428.0,0.1906]
[1680403010135,0.3187,28429.0,28428.0,0.1916]
[1680403010531,0.3017,28429.0,28428.0,0.1996]
[1680403012239,0.3007,28429.0,28428.0,0.1906]
[1680403012438,0.3017,28429.0,28428.0,0.1986]
[1680403013244,0.3007,28429.0,28428.0,0.1906]
[1680403013541,0.3017,28429.0,28428.0,0.1986]
[1680403014844,0.3017,28429.0,28428.0,0.0782]
[1680403015848,0.372,28429.0,28428.0,0.008]
[1680403018553,0.0713,28429.0,28428.0,0.008]
[1680403018745,0.372,28429.0,28428.0,0.008]
[1680403026950,0.3017,28429.0,28428.0,0.0784]
[1680403040266,0.001,28429.0,28428.0,0.0784]
[1680403040464,0.3017,28429.0,28428.0,0.0784]
[1680403040867,0.001,28429.0,28428.0,0.0784]
[1680403041066,0.3017,28429.0,28428.0,0.0784]
[1680403041466,0.001,28429.0,28428.0,0.0784]
[1680403041666,0.3017,28429.0,28428.0,0.0784]
[1680403042067,0.001,28429.0,28428.0,0.0784]
[1680403042370,0.3017,28429.0,28428.0,0.0784]
[1680403047670,0.3715,28429.0,28428.0,0.008]
[1680403049065,0.05,28428.0,28423.0,0.1201]
[1680403049374,0.05,28428.0,28423.0,0.0701]
[1680403049375,0.3007,28424.0,28423.0,0.0701]
[1680403050373,0.3037,28424.0,28423.0,0.0701]
[1680403051370,0.6044,28424.0,28423.0,0.0701]
[1680403051976,0.6034,28424.0,28423.0,0.0701]
[1680403052378,0.6024,28424.0,28423.0,0.0701]
[1680403053970,0.6024,28424.0,28419.0,0.05]
[1680403054178,0.6722,28424.0,28423.0,0.0704]
[1680403056879,0.6727,28424.0,28423.0,0.0704]
[1680403063583,0.6024,28424.0,28423.0,0.0704]
[1680403063783,0.001,28424.0,28423.0,0.0704]
[1680403067089,0.001,28424.0,28423.0,0.1408]
[1680403068384,0.001,28424.0,28423.0,0.2816]
[1680403068582,0.3007,28429.0,28424.0,0.05]
[1680403068781,0.3007,28429.0,28428.0,0.0704]
[1680403068983,0.3007,28429.0,28428.0,0.1204]
[1680403069588,0.3257,28429.0,28428.0,0.1204]
[1680403070687,0.3067,28429.0,28428.0,0.1204]
[1680403072186,0.3017,28429.0,28428.0,0.1214]
[1680403074092,0.3017,28429.0,28428.0,0.1918]
[1680403075096,0.3007,28429.0,28428.0,0.1908]
[1680403075295,0.3017,28429.0,28428.0,0.1918]
[1680403075697,0.3027,28429.0,28428.0,0.1918]
[1680403076599,0.002,28429.0,28428.0,0.1918]
[1680403076792,0.3027,28429.0,28428.0,0.1918]
[1680403087103,0.3027,28429.0,28428.0,0.333]
[1680403089707,0.002,28429.0,28428.0,0.333]
[1680403097101,0.3007,28434.0,28429.0,0.05]
[1680403097306,0.3007,28434.0,28433.0,0.1408]
[1680403097511,0.3007,28437.0,28433.0,0.1908]
[1680403097705,0.3007,28437.0,28436.0,0.0701]
[1680403099008,0.3277,28437.0,28436.0,0.0701]
[1680403110611,0.027,28437.0,28436.0,0.0701]
[1680403127030,0.027,28437.0,28436.0,0.1405]
[1680403127428,0.027,28437.0,28436.0,0.0704]
[1680403135842,0.3277,28437.0,28436.0,0.0704]
[1680403136136,0.45427827,28437.0,28436.0,0.0704]
[1680403140938,0.3277,28437.0,28436.0,0.0704]
[1680403141139,0.45418761,28437.0,28436.0,0.0704]
[1680403141340,0.3277,28437.0,28436.0,0.0704]
[1680403141844,0.45418778,28437.0,28436.0,0.0704]
[1680403142047,0.49647103,28437.0,28436.0,0.0704]
[1680403142848,0.3277,28437.0,28436.0,0.0704]
[1680403143549,0.49647103,28437.0,28436.0,0.0704]
[1680403143750,0.3277,28437.0,28436.0,0.0704]
[1680403144052,0.49647103,28437.0,28436.0,0.0704]
[1680403145552,0.3277,28437.0,28436.0,0.0704]
[1680403147046,0.3981,28437.0,28436.0,0.0704]
[1680403149453,0.3981,28437.0,28436.0,0.07025432]
[1680403152853,0.52465306,28437.0,28436.0,0.07025432]
[1680403157056,0.45425306,28437.0,28436.0,0.0701]
[1680403157256,0.45425306,28437.0,28436.0,0.1201]
[1680403162162,0.45425306,28437.0,28436.0,0.0701]
[1680403163759,0.15355306,28437.0,28436.0,0.0701]
[1680403165567,0.15355306,28437.0,28436.0,0.1405]
[1680403167263,0.15355306,28437.0,28436.0,0.1905]
[1680403176877,0.12655306,28439.0,28436.0,0.3319]
[1680403177070,0.12655306,28439.0,28438.0,0.2814]
[1680403179383,0.13555306,28439.0,28438.0,0.2834]
[1680403181275,0.009,28439.0,28438.0,0.2834]
[1680403187579,0.009,28439.0,28438.0,0.1423]
[1680403207094,0.009,28439.0,28438.0,0.0724]
[1680403214999,0.13555306,28439.0,28438.0,0.0724]
[1680403221599,0.13555306,28439.0,28438.0,0.07223379]
[1680403226901,0.13555306,28439.0,28438.0,0.28343379]
[1680403227411,0.13555306,28439.0,28438.0,0.0724]
[1680403242712,0.43625306,28439.0,28438.0,0.0724]
[1680403250730,0.13555306,28439.0,28438.0,0.0724]
[1680403267855,0.009,28439.0,28438.0,0.0724]
[1680403269154,0.009,28439.0,28438.0,0.002]
[1680403269354,0.24817103,28439.0,28438.0,0.002]
[1680403270254,0.0794,28439.0,28438.0,0.002]
[1680403273155,0.24817103,28439.0,28438.0,0.002]
[1680403273753,0.24817103,28439.0,28432.0,0.2104]
[1680403273754,0.29817103,28439.0,28432.0,0.2104]
[1680403273947,0.3709,28434.0,28430.0,0.0698]
[1680403274153,0.3709,28434.0,28433.0,0.0704]
[1680403275459,0.3799,28434.0,28433.0,0.0704]
[1680403275659,0.3709,28434.0,28433.0,0.0704]
[1680403275857,0.3799,28434.0,28433.0,0.0714]
[1680403277062,0.3795,28434.0,28433.0,0.001]
[1680403290971,0.0788,28434.0,28433.0,0.001]
[1680403291172,0.6802,28434.0,28433.0,0.001]
[1680403300686,0.6802,28434.0,28428.0,0.0701]
[1680403300687,0.05,28433.0,28428.0,0.0701]
[1680403300886,0.6718,28429.0,28428.0,0.0701]
[1680403302188,0.6728,28429.0,28428.0,0.0941]
[1680403303378,0.6728,28429.0,28428.0,0.0701]
[1680403303379,0.6718,28429.0,28428.0,0.0701]
[1680403303583,0.6728,28429.0,28428.0,0.0871]
[1680403306886,0.6024,28429.0,28428.0,0.017]
[1680403307091,0.6726,28429.0,28428.0,0.017]
[1680403308094,0.6726,28429.0,28428.0,0.011]
[1680403312292,0.743,28429.0,28428.0,0.011]
[1680403316502,0.1908,28428.0,28422.0,0.4204]
[1680403316695,0.371,28423.0,28422.0,0.0704]
[1680403317501,0.373,28423.0,28422.0,0.0834]
[1680403321803,0.0723,28423.0,28422.0,0.0834]
[1680403322002,0.373,28423.0,28422.0,0.0834]
[1680403327009,0.3725,28423.0,28422.0,0.013]
[1680403331116,0.0718,28423.0,28422.0,0.013]
[1680403336406,0.002,28423.0,28422.0,0.0834]
[1680403341326,0.002,28423.0,28422.0,0.1334]
[1680403348027,0.002,28423.0,28422.0,0.2038]
[1680403350522,0.002,28423.0,28422.0,0.1334]
[1680403350718,0.002,28423.0,28422.0,0.0834]
[1680403351823,0.3027,28423.0,28422.0,0.0834]
[1680403358722,0.002,28423.0,28422.0,0.0834]
[1680403358922,0.3027,28423.0,28422.0,0.0834]
[1680403359324,0.002,28423.0,28422.0,0.0834]
[1680403359630,0.3027,28423.0,28422.0,0.0834]
[1680403361730,0.002,28423.0,28422.0,0.0834]
[1680403361925,0.3027,28423.0,28422.0,0.0834]
[1680403363430,0.002,28423.0,28422.0,0.0834]
[1680403363630,0.3027,28423.0,28422.0,0.0834]
[1680403370226,0.3027,28423.0,28422.0,0.0832692]
[1680403381339,0.3027,28423.0,28422.0,0.1332692]
[1680403392946,0.3027,28423.0,28422.0,0.0832692]
[1680403393142,0.3027,28423.0,28418.0,0.4904]
[1680403393352,0.3027,28423.0,28422.0,0.0704]
[1680403394847,0.3007,28423.0,28422.0,0.0704]
[1680403395049,0.3027,28423.0,28422.0,0.0704]
[1680403395250,0.3027,28423.0,28422.0,0.0724]
[1680403395855,0.3017,28423.0,28422.0,0.0724]
[1680403396158,0.3007,28423.0,28422.0,0.0704]
[1680403396352,0.3007,28423.0,28422.0,0.0724]
[1680403397559,0.3017,28423.0,28422.0,0.0724]
[1680403401166,0.3017,28423.0,28422.0,0.0744]
[1680403401667,0.3007,28423.0,28422.0,0.0724]
[1680403402967,0.3007,28423.0,28422.0,0.0744]
[1680403405467,0.3007,28423.0,28422.0,0.0724]
[1680403408771,0.0704,28424.0,28422.0,0.0724]
[1680403408967,0.0704,28424.0,28423.0,0.0704]
[1680403411368,0.0754,28424.0,28423.0,0.0704]
[1680403416977,0.0754,28424.0,28423.0,0.0701]
[1680403419675,0.005,28424.0,28423.0,0.0704]
[1680403420878,0.72793104,28425.0,28423.0,0.0724]
[1680403421078,0.72793104,28425.0,28424.0,0.0704]
[1680403421674,0.73293104,28425.0,28424.0,0.0704]
[1680403426177,0.80313104,28425.0,28424.0,0.0704]
[1680403432484,0.50243104,28425.0,28424.0,0.0704]
[1680403434183,0.3759,28425.0,28424.0,0.0704]
[1680403436692,0.0752,28425.0,28424.0,0.0704]
[1680403436889,0.0752,28425.0,28422.0,0.0701]
[1680403437091,0.3007,28423.0,28422.0,0.0701]
[1680403439596,0.3017,28423.0,28422.0,0.0721]
[1680403439800,0.3007,28423.0,28422.0,0.0701]
[1680403439997,0.3007,28423.0,28422.0,0.0721]
[1680403441698,0.3007,28423.0,28422.0,0.07192503]
[1680403442697,0.3007,28423.0,28422.0,0.06992503]
[1680403442997,0.3007,28423.0,28422.0,0.07192503]
[1680403445299,0.42732521,28423.0,28422.0,0.07192503]
[1680403446305,0.3007,28423.0,28422.0,0.07192503]
[1680403447304,0.42732521,28423.0,28422.0,0.07192503]
[1680403448801,0.49712521,28423.0,28419.0,0.0701]
[1680403449095,0.3705,28420.0,28419.0,0.0701]
[1680403449296,0.4407,28420.0,28415.0,0.0701]
[1680403449498,0.3007,28416.0,28415.0,0.0701]
[1680403451603,0.3027,28416.0,28415.0,0.0701]
[1680403467325,0.002,28416.0,28415.0,0.0701]
[1680403476731,0.002,28416.0,28415.0,0.1405]
[1680403492943,0.002,28416.0,28415.0,0.1905]
[1680403495642,0.002,28416.0,28415.0,0.4912]
[1680403496945,0.002,28416.0,28415.0,0.632]
[1680403501248,0.002,28416.0,28415.0,0.63184678]
[1680403506148,0.002,28416.0,28415.0,0.6333935]
[1680403510862,0.002,28416.0,28415.0,0.07194672]
[1680403548094,0.3027,28416.0,28415.0,0.07194672]
[1680403548994,0.3027,28416.0,28415.0,0.07186425]
[1680403556996,0.3731,28416.0,28415.0,0.00146425]
[1680403557391,0.3731,28416.0,28413.0,0.0704]
[1680403557596,0.0704,28415.0,28413.0,0.0704]
[1680403557798,0.0704,28415.0,28414.0,0.05155436]
[1680403559003,0.0734,28415.0,28414.0,0.05155436]
[1680403559404,0.0734,28415.0,28414.0,0.00155436]
[1680403562216,0.0704,28415.0,28414.0,0.00155436]
[1680403562407,0.0724,28415.0,28414.0,0.00155436]
[1680403567007,0.0724,28415.0,28414.0,0.07165436]
[1680403572315,0.002,28415.0,28414.0,0.07195436]
[1680403572613,0.002,28415.0,28414.0,0.12195436]
[1680403574011,0.002,28415.0,28414.0,0.42265436]
[1680403574216,0.00184411,28415.0,28414.0,0.42265436]
[1680403578416,0.12662521,28420.0,28415.0,0.1908]
[1680403578620,0.12662521,28420.0,28419.0,0.0702]
[1680403578812,0.12662521,28420.0,28419.0,0.1202]
[1680403579018,0.19682521,28421.0,28419.0,0.12175442]
[1680403579217,0.19682521,28421.0,28420.0,0.1204]
[1680403580319,0.21482521,28421.0,28420.0,0.1204]
[1680403580718,0.21482521,28421.0,28420.0,0.0704]
[1680403581018,0.0882,28421.0,28420.0,0.0704]
[1680403581323,0.0702,28421.0,28420.0,0.0704]
[1680403581510,0.0822,28421.0,28420.0,0.0704]
[1680403581713,0.012,28421.0,28420.0,0.0704]
[1680403583223,0.012,28421.0,28420.0,0.3711]
[1680403585615,0.012,28421.0,28420.0,0.37265442]
[1680403585821,0.0818,28421.0,28420.0,0.37235442]
[1680403586123,0.0818,28421.0,28420.0,0.07165442]
[1680403586917,0.0824,28421.0,28420.0,0.07165442]
[1680403595127,0.1324,28421.0,28417.0,0.0704]
[1680403595325,0.062,28421.0,28420.0,0.00155447]
[1680403595526,0.0822,28421.0,28418.0,0.0704]
[1680403595726,0.07,28419.0,28418.0,0.0704]
[1680403596435,0.3707,28419.0,28418.0,0.0704]
[1680403597026,0.3705,28419.0,28418.0,0.0704]
[1680403597532,0.3705,28419.0,28418.0,0.0724]
[1680403604139,0.3007,28419.0,28418.0,0.0724]
[1680403605630,0.371,28422.0,28418.0,0.0724]
[1680403605826,0.371,28422.0,28420.0,0.0704]
[1680403606534,0.389,28422.0,28420.0,0.0704]
[1680403607039,0.3889,28422.0,28420.0,0.0704]
[1680403610440,0.0882,28422.0,28420.0,0.0704]
[1680403612941,0.3889,28422.0,28420.0,0.0704]
[1680403614230,0.0882,28422.0,28420.0,0.0704]
[1680403614735,0.3889,28422.0,28420.0,0.0704]
[1680403614930,0.51552521,28422.0,28420.0,0.0704]
[1680403616941,0.0703,28421.0,28420.0,0.0704]
[1680403618843,0.0823,28421.0,28420.0,0.0704]
[1680403622945,0.20892521,28421.0,28420.0,0.0704]
[1680403627042,0.13862521,28421.0,28420.0,0.0704]
[1680403631547,0.05,28420.0,28417.0,0.05]
[1680403631738,0.3007,28419.0,28416.0,0.05]
[1680403631943,0.3007,28419.0,28418.0,0.0701]
[1680403633048,0.12662521,28420.0,28418.0,0.0701]
[1680403633248,0.3007,28419.0,28416.0,0.05]
[1680403633448,0.3007,28419.0,28418.0,0.0704]
[1680403633841,0.3007,28419.0,28418.0,0.0724]
[1680403646556,0.3007,28419.0,28418.0,0.1428]
[1680403646754,0.12662521,28421.0,28418.0,0.1428]
[1680403646955,0.42732521,28422.0,28420.0,0.0701]
[1680403647161,0.42732521,28422.0,28421.0,0.1204]
[1680403647363,0.3007,28422.0,28421.0,0.1204]
[1680403648461,0.42732588,28422.0,28421.0,0.1204]
[1680403649064,0.44532588,28422.0,28421.0,0.1204]
[1680403652275,0.44532588,28422.0,28421.0,0.0704]
[1680403661377,0.14462588,28422.0,28421.0,0.0704]
[1680403664077,0.21492588,28422.0,28419.0,0.0704]
[1680403664276,0.0702,28420.0,28419.0,0.0704]
[1680403666280,0.0752,28420.0,28419.0,0.0704]
[1680403676993,0.005,28420.0,28419.0,0.0704]
[1680403680890,0.005,28420.0,28416.0,0.3507]
[1680403681189,0.005,28420.0,28419.0,0.0704]
[1680403684197,0.0752,28420.0,28416.0,0.1204]
[1680403684395,0.0704,28417.0,28416.0,0.0704]
[1680403686587,0.0724,28417.0,28416.0,0.0724]
[1680403696991,0.002,28417.0,28416.0,0.0724]
[1680403699410,0.001,28417.0,28416.0,0.0724]
[1680403699701,0.002,28417.0,28416.0,0.0724]
[1680403706506,0.002,28417.0,28416.0,0.4435]
[1680403706701,0.002,28417.0,28416.0,0.4935]
[1680403706902,0.002,28417.0,28416.0,0.4231]
[1680403714715,0.002,28417.0,28416.0,0.1224]
[1680403714916,0.002,28417.0,28416.0,0.4231]
[1680403716916,0.002,28417.0,28416.0,0.4933]
[1680403724921,0.002,28417.0,28416.0,0.49314983]
[1680403742332,0.002,28417.0,28416.0,0.14244983]
[1680403751144,0.002,28417.0,28416.0,0.19244983]
[1680403756948,0.002,28417.0,28416.0,0.12224983]
[1680403764257,0.002,28417.0,28416.0,0.07224983]
[1680403765357,0.002,28417.0,28416.0,0.12224983]
[1680403766953,0.002,28417.0,28416.0,0.07224983]
[1680403769154,0.002,28417.0,28416.0,0.12224983]
[1680403769356,0.001,28417.0,28416.0,0.12224983]
[1680403770355,0.002,28417.0,28416.0,0.12224983]
[1680403770556,0.002,28417.0,28416.0,0.07224983]
[1680403771457,0.002,28417.0,28416.0,0.12224983]
[1680403771863,0.002,28417.0,28416.0,0.12210394]
[1680403774665,0.002,28417.0,28416.0,0.07210394]
[1680403786968,0.002,28417.0,28416.0,0.002]
[1680403787169,0.002,28417.0,28416.0,0.0724]
[1680403796870,0.002,28417.0,28416.0,0.002]
[1680403797076,0.0724,28417.0,28416.0,0.0722]
[1680403806084,0.0724,28417.0,28416.0,0.002]
[1680403806986,0.002,28417.0,28416.0,0.0724]
[1680403808778,0.00179282,28417.0,28416.0,0.0724]
[1680403811277,0.00179282,28417.0,28416.0,0.1428]
[1680403811483,0.00179282,28417.0,28416.0,0.1928]
[1680403838012,0.00179282,28417.0,28416.0,0.4935]
[1680403855634,0.00179282,28417.0,28416.0,0.49343959]
[1680403875151,0.00179282,28417.0,28416.0,0.44343959]
[1680403875547,0.00179282,28417.0,28414.0,0.05]
[1680403875548,0.07209282,28417.0,28413.0,0.1199]
[1680403875851,0.07209282,28417.0,28416.0,0.0704]